Cogmind - Beta 9.6 @@@ ROGUE MODE // 2020.05.04 @ 15:27:58 Player: lsend Result: Destroyed by as-37236 with Assembled Heavy Rifle Performance ------------- Evolutions (0) 0 Regions Visited (4) 800 Robots Destroyed (0) 0 Value Destroyed (0) 0 Prototype IDs (22) 440 Alien Tech Used (0) 0 Bonus (300) 300 TOTAL SCORE: 1540 Bonus ------- Aligned with FarCom 300 Cogmind --------- Core Integrity 0/250 Matter 300/300 Energy 99/100 System Corruption 0% Temperature Cool (0) Movement Core (50) Location -9/Mines Parts ------- > --- POWER (1) -------- (None) > --- PROPULSION (2) --- (None) > --- UTILITY (2) ------ (None) > --- WEAPON (2) ------- (None) > --- INVENTORY (4) ---- Light Ion Engine Cloak of Protection Field Lobotomy Kit Peak State ------------ > --- POWER ------------ (None) > --- PROPULSION ------- Light Treads Light Treads > --- UTILITY ---------- (None) > --- WEAPON ----------- (None) > --- INVENTORY -------- Light Ion Engine Field Lobotomy Kit [Rating: 3] Favorites ----------- Power None Propulsion Light Treads Treads Light Treads Utility None Weapon None Build | -11 -10 -10 -10 -9 ------- Run | Scr Mat Min Exi Min Slots Evolved . | . . . . . Power . | . . . . . Propulsion . | . . . . . Utility . | . . . . . Weapon . | . . . . . Parts Attached 2 | 2 . . . . Power . | . . . . . Engine . | . . . . . Core . | . . . . . Reactor . | . . . . . Propulsion 2 | 2 . . . . Treads 2 | 2 . . . . Leg . | . . . . . Wheel . | . . . . . Hover . | . . . . . Flight . | . . . . . Utility . | . . . . . Device . | . . . . . Storage . | . . . . . Processor . | . . . . . Hackware . | . . . . . Protection . | . . . . . Artifact . | . . . . . Weapon . | . . . . . Energy Gun . | . . . . . Energy Cannon . | . . . . . Ballistic Gun . | . . . . . Ballistic Cannon . | . . . . . Launcher . | . . . . . Special Weapon . | . . . . . Impact Weapon . | . . . . . Slashing Weapon . | . . . . . Piercing Weapon . | . . . . . Special Melee Weapon . | . . . . . Unidentified Prototypes . | . . . . . Parts Lost 2 | . . . . 2 Power . | . . . . . Propulsion 2 | . . . . 2 Utility . | . . . . . Weapon . | . . . . . Highest Loss Streak 2 | . . . . 2 Average Slot Usage (%) 27 | . 28 28 28 26 Treads 27 | . 28 28 28 26 Naked Turns 6 | . . . . 6 Heaviest Build . | . . . . . Greatest Support 3 | 3 3 3 3 3 Greatest Overweight (x) . | . . . . . Average Overweight (x) . | . . . . . Largest Inventory Capacity 4 | 4 4 4 4 4 Average Capacity 4 | 4 4 4 4 4 Most Carried 3 | . 1 1 3 3 Average Carried 1 | . . 1 1 3 Final Capacity 4 | 4 4 4 4 4 Final Carried 3 | . 1 1 3 3 Class Distribution -------------------- 100% | Mutant Dominant Class ---------------- Mutant | -10/Materials Mutant | -10/Mines Mutant | -10/Exiles Mutant | -9/Mines Resources | -11 -10 -10 -10 -9 ----------- Run | Scr Mat Min Exi Min Matter Collected 220 | 220 . . . . Remotely . | . . . . . Salvage Created . | . . . . . Parts . | . . . . . Haulers Intercepted . | . . . . . Recyclers Shooed . | . . . . . Parts Field Recycled . | . . . . . Retrieved Matter . | . . . . . Parts Self-Destructed . | . . . . . Prevented . | . . . . . Kills | -11 -10 -10 -10 -9 ------- Run | Scr Mat Min Exi Min Combat Hostiles Destroyed . | . . . . . Classes Destroyed . | . . . . . Best Kill Streak . | . . . . . Combat Bots Only . | . . . . . Max Kills in Single Turn . | . . . . . Gunslinging . | . . . . . Exploded . | . . . . . Melee . | . . . . . Uniques/NPCs Destroyed . | . . . . . Combat | -11 -10 -10 -10 -9 -------- Run | Scr Mat Min Exi Min Damage Taken 544 | . . 308 . 236 Core 255 | . . 146 . 109 Absorbed by Shields . | . . . . . Core Remaining (%) 100 | 100 . . . . Volleys Fired . | . . . . . Largest . | . . . . . Hottest . | . . . . . Shots Fired . | . . . . . Gun . | . . . . . Cannon . | . . . . . Launcher . | . . . . . Special . | . . . . . Kinetic . | . . . . . Thermal . | . . . . . Explosive . | . . . . . Electromagnetic . | . . . . . Robot Hit Streak . | . . . . . Robot Miss Streak . | . . . . . Penetration Max . | . . . . . Secondary Targets . | . . . . . Shots Hit Robots . | . . . . . Core Hits . | . . . . . Critical Hits . | . . . . . Critical Kills . | . . . . . Critical Parts Destroyed . | . . . . . Melee Attacks . | . . . . . Impact . | . . . . . Slashing . | . . . . . Piercing . | . . . . . Sneak Attacks . | . . . . . Combat Hostiles . | . . . . . Follow-up Attacks . | . . . . . Damage Inflicted . | . . . . . Guns . | . . . . . Cannons . | . . . . . Explosions . | . . . . . Melee . | . . . . . Ramming . | . . . . . Kinetic . | . . . . . Thermal . | . . . . . Explosive . | . . . . . Electromagnetic . | . . . . . Impact . | . . . . . Slashing . | . . . . . Piercing . | . . . . . Highest Corruption . | . . . . . Average Corruption . | . . . . . Corruption Purged . | . . . . . Overload Shots . | . . . . . Overflow Damage . | . . . . . Projectiles . | . . . . . Explosions . | . . . . . Melee . | . . . . . Knockbacks . | . . . . . Impact . | . . . . . Kinetic . | . . . . . Secondary . | . . . . . Self-Inflicted Damage . | . . . . . Shots . | . . . . . Rammed . | . . . . . Targets Rammed . | . . . . . Kicked . | . . . . . Crushed . | . . . . . Highest Temperature . | . . . . . Average Temperature . | . . . . . Received Heat Transfer 57 | . . 57 . . Siege Activations . | . . . . . Robots Corrupted . | . . . . . Combat Hostiles . | . . . . . Parts Fried . | . . . . . Impact Corruptions . | . . . . . Robots Melted . | . . . . . Combat Hostiles . | . . . . . Parts Melted . | . . . . . Heat Transferred . | . . . . . Parts Sabotaged . | . . . . . Parts Stolen . | . . . . . Parts Stripped . | . . . . . Power Chain Reactions . | . . . . . Missiles Intercepted . | . . . . . Alert | -11 -10 -10 -10 -9 ------- Run | Scr Mat Min Exi Min Peak Influence 70 | . . 15 . 70 Average Influence 15 | . . 14 . 27 Maximum Alert Level . | . . . . . Low Security (%) 100 | 100 100 100 . 100 Level 1 . | . . . . . Level 2 . | . . . . . Level 3 . | . . . . . Level 4 . | . . . . . Level 5 . | . . . . . High Security . | . . . . . Max Security . | . . . . . Squads Dispatched . | . . . . . Investigation . | . . . . . Extermination . | . . . . . Reinforcement . | . . . . . Assault . | . . . . . Garrison . | . . . . . Intercept . | . . . . . Construction Impeded . | . . . . . Haulers Reinforced . | . . . . . Stealth | -11 -10 -10 -10 -9 --------- Run | Scr Mat Min Exi Min Distress Signals . | . . . . . Communications Jammed . | . . . . . Distress Signals . | . . . . . Times Spotted 28 | . . 9 . 19 Peak Tracking Total 17 | . . 5 . 17 Tactical Retreats 4 | . . 3 . 1 Traps | -11 -10 -10 -10 -9 ------- Run | Scr Mat Min Exi Min Traps Triggered . | . . . . . Indirectly . | . . . . . Trap Hack Attempts . | . . . . . Triggered . | . . . . . Disarmed . | . . . . . Reprogrammed . | . . . . . Reused . | . . . . . Traps Extracted . | . . . . . Installed . | . . . . . Triggered . | . . . . . Machines | -11 -10 -10 -10 -9 ---------- Run | Scr Mat Min Exi Min Machines Disabled . | . . . . . Max in Single Turn . | . . . . . Machines Sabotaged . | . . . . . Garrisons Compromised . | . . . . . Overloaded Fab Kills . | . . . . . Fab Network Shutdowns . | . . . . . Hacking | -11 -10 -10 -10 -9 --------- Run | Scr Mat Min Exi Min Machines Accessed 1 | . . . 1 . Terminals . | . . . . . Fabricators . | . . . . . Repair Stations . | . . . . . Recycling Units . | . . . . . Scanalyzers . | . . . . . Garrison Access . | . . . . . Total Hacks 1 | . . . 1 . Successful 1 | . . . 1 . Failed . | . . . . . Catastrophic . | . . . . . Database Lockouts . | . . . . . Manual 1 | . . . 1 . Terminals . | . . . . . Fabricators . | . . . . . Repair Stations . | . . . . . Recycling Units . | . . . . . Scanalyzers . | . . . . . Garrison Access . | . . . . . Terminal Hacks 1 | . . . 1 . EX-Prototype ID Bank 1 | . . . 1 . Fabricator Hacks . | . . . . . Repair Station Hacks . | . . . . . Recycling Unit Hacks . | . . . . . Scanalyzer . | . . . . . Garrison Access Hacks . | . . . . . Unauthorized Hacks . | . . . . . Terminals . | . . . . . Fabricators . | . . . . . Repair Stations . | . . . . . Recycling Units . | . . . . . Scanalyzers . | . . . . . Garrison Access . | . . . . . Data Cores Recovered . | . . . . . Used . | . . . . . Hacking Detections . | . . . . . Full Trace Events . | . . . . . Feedback Events . | . . . . . Feedback Blocked . | . . . . . Robot Schematics Acquired . | . . . . . Robots Built . | . . . . . Matter . | . . . . . Time . | . . . . . Total Robot Build Rating . | . . . . . Part Schematics Acquired . | . . . . . Parts Built . | . . . . . Matter . | . . . . . Time . | . . . . . Total Part Build Rating . | . . . . . Parts Repaired . | . . . . . Time . | . . . . . Parts Recycled . | . . . . . Recycled Matter . | . . . . . Retrieved Matter . | . . . . . Retrieved Components . | . . . . . Parts Scanalyzed . | . . . . . Part Schematics Acquired . | . . . . . Parts Damaged . | . . . . . Bothacking | -11 -10 -10 -10 -9 ------------ Run | Scr Mat Min Exi Min Used RIF Installer . | . . . . . Robots Hacked . | . . . . . Non-combat . | . . . . . Combat . | . . . . . Robot Hacks Applied . | . . . . . Relay Couplers Released . | . . . . . Robots Rewired . | . . . . . Allies Hacked . | . . . . . Hacks Repelled . | . . . . . Allies | -11 -10 -10 -10 -9 -------- Run | Scr Mat Min Exi Min Total Allies 3 | . . . . 3 Largest Group 3 | . . . . 3 Highest-Rated Group 40 | . . . . 40 Highest-Rated Ally 16 | . . . . 16 Total Orders . | . . . . . Ally Attacks 32 | . . . . 32 Total Damage 366 | . . . . 366 Kills 3 | . . . . 3 Allies Corrupted 1 | . . . . 1 Allies Melted . | . . . . . Intel | -11 -10 -10 -10 -9 ------- Run | Scr Mat Min Exi Min Robot Analysis Total . | . . . . . Derelict Logs Recovered 2 | . . 1 . 1 Drone Launches . | . . . . . Drone Recoveries . | . . . . . Exploration | -11 -10 -10 -10 -9 ------------- Run | Scr Mat Min Exi Min Turns Passed 447 | 17 48 183 112 87 Spaces Moved 863 | 28 94 355 219 167 Core 863 | 28 94 355 219 167 Treads . | . . . . . Legs . | . . . . . Wheels . | . . . . . Hover . | . . . . . Flight . | . . . . . Fastest Speed 50 | 50 50 50 50 50 Average Speed 50 | 50 50 50 50 50 Slowest Speed 50 | 50 50 50 50 50 Overloaded Moves . | . . . . . Propulsion Burnouts . | . . . . . Robots Hopped . | . . . . . Cave-ins Triggered . | . . . . . Exploration Rate (%) 43 | 3 21 83 61 48 Regions Visited 4 Branch Regions 3 Pre-discovered Areas . | . . . . . Known Exits Taken . | . . . . . Unknown Exits Taken 4 | 1 1 1 1 . Scrap Searched 2 | . . 1 . 1 Spaces Dug . | . . . . . Terrain Destroyed . | . . . . . Melee . | . . . . . Projectile . | . . . . . AOE . | . . . . . Actions | -11 -10 -10 -10 -9 --------- Run | Scr Mat Min Exi Min Total 872 | 29 94 359 220 170 Wait 8 | . . 5 . 3 Move 859 | 27 93 354 218 167 Hop . | . . . . . Pick Up 3 | . 1 . 2 . Fast Attach 2 | 2 . . . . Attach . | . . . . . Detach . | . . . . . Swap . | . . . . . Drop . | . . . . . Fire . | . . . . . Melee . | . . . . . Ram . | . . . . . Kick . | . . . . . Crush . | . . . . . Escape Stasis . | . . . . . Rewire . | . . . . . Trap . | . . . . . Miscellaneous . | . . . . . Route ------- -11/Scrapyard -10/Materials -10/Mines (discovered 3 exits: [*Mat x2] / *Exi) -10/Exiles (discovered 2 exits: [*Min x2]) -9/Mines History --------- Turn | Location | Event 3 | -11/Scrapyard | Discovered new exit (range 15) 18 | -11/Scrapyard | Entered Materials 47 | -10/Materials | Discovered new exit (range 6) 66 | -10/Materials | Entered Mines 103 | -10/Mines | Met a Derelict bent on vengeance 123 | -10/Mines | Learned Materials security intel 125 | -10/Mines | Discovered new exit (range 5) 189 | -10/Mines | Received a Rocket Launcher from a helpful Derelict 200 | -10/Mines | Discovered new exit (range 7) 230 | -10/Mines | Core integrity fell below 50% 247 | -10/Mines | Deemed a non-threat by the Exiles lab entrance 247 | -10/Mines | Discovered new exit (range 5) 249 | -10/Mines | Entered Exiles 256 | -10/Exiles | Discovered new exit (range 15) 262 | -10/Exiles | Met 8R-AWN 270 | -10/Exiles | Met EX-HEX 284 | -10/Exiles | Met EX-BIN 292 | -10/Exiles | Aligned with FarCom system 293 | -10/Exiles | Given EX-Vault access code 305 | -10/Exiles | Opened EX-Vault 308 | -10/Exiles | Found Field Lobotomy Kit 311 | -10/Exiles | Found Cloak of Protection 316 | -10/Exiles | Build established: Mutant 323 | -10/Exiles | Warned to stay clear of 0b10 Research branches 328 | -10/Exiles | Exiles lab attacked by MAIN.C 356 | -10/Exiles | Discovered new exit (range 11) 361 | -10/Exiles | Stole two prototypes: Cloak of Protection, Field Lobotomy Kit 361 | -10/Exiles | Entered Mines 382 | -9/Mines | Assisted by bots powering up and referring to "LRC-V3" 407 | -9/Mines | Assembled infested the area 412 | -9/Mines | Assisted by a Guerilla fighting off Assembled 445 | -9/Mines | Core integrity fell below 20% 448 | -9/Mines | Destroyed by as-37236 with Assembled Heavy Rifle Last Messages --------------- 00396_ Found Hrd. Light Armor Plating. 00396_ Found EM Shotgun. 00396_ Found Integration Mediator. 00396_ Found Sml. Matter Pod. 00407_ ALERT: Infestation in the mines, dispatching Demolisher response squad. 00408_ Acquired derelict log, extracted data. Data stored: Recycling entrances (x1). 00412_ A derelict emerges from the shadows: "You need to get out of here! I've been tracking a group of Assembled to figure out where they're coming from, and they're closing on this area, come on!" 00438_ Lgt. Treads destroyed. 00440_ Aluminum Leg severed. 00440_ Mercenary 2a system corrupted by crushing effect. 00440_ Mercenary 2a knocked back. 00441_ Mercenary 2a system terminally corrupted. 00442_ Lgt. Treads destroyed. 00442_ Trooper 2a destroyed. 00442_ Trooper 2b shuts down. 00443_ as-72679 sneak attacks. 00443_ Trooper 2b destroyed. Map ----- +----------------------------------------------------+ | | | | | | | | | | | | | | | | | | | | | | | | | | | | | | | | | | | | | ?????????????????????????????????????????????????? | | ?????????????????????????????????????????????????? | | ????????????????????###??????????????????????????# | | ???#####???????????## ##???????????????????????## | | ??## #???????????# ##??????????????????????# | | ??# #???????????# ##?????????????????????# | | ??# ##??????????## ##????????????????????# | | ??# ####????????### @ #????????????????????# | | ???# ##?????????## #????????????????????# | | ????# #?????????## ##???????????????????# | | ?????# #?????????#a a ##?????####?????????## | | ????## #?????????# #????? #?????????? | | ???## #????????## ##### #????????? | | ???# ##??????###a a ###?????? | | ???# # #??????## [%! ##????? | | ??## ## #???#### a! a a ###### ###### | | ??# ## #??## ######?? ## | | ??# ## #### a a %==%* #?? #?# | | ??## ### ! a = |%### #??? #??# | | ???# ##?# %|a ### %= !#?# ##### #??### | | ???# #### ##?# ##?# #?### | | ???# #??# ####??####### ### | | ???# ##??# #???????????# ## | | ???####### ##???# #???????????# # | | ?????????## ##???? ???????????#### # | | ??????????## ##???? ??????????????# ## | | ???????????# #????# ?????????????## #? | | ??????????## ##????## ??????????????# #? | | ?????????## ##??????##### ?????????????# ##? | | ?????????# #????????????#????????????? ##?? | | ?????????# =%!#????????????????????????? ##??? | | ?????????# = #???????????????????????? #???? | +----------------------------------------------------+ Best States ------------- Heat Dissipation 25 Energy Generation 5 Energy Capacity 100 Matter Stores 300 Matter Capacity 300 Sight Range 16 Terrain Scan Density 10 Evasion (%) 50 Item Schematics ----------------- None Robot Schematics ------------------ None Fabricated ------------ Nothing Alien Tech Used ----------------- None Achievements -------------- None Challenges ------------ None Game ------ Seed PhasingDecoderExpander Manual? 0 Play Time 00:06:56 Cumulative 508.6 hours Start 2020.05.03 @ 19:54:10 End 2020.05.04 @ 15:27:58 Sessions 3 Manual Loads 0 Difficulty Rogue Special Mode None Game No. 414 Rogue 414 Adventurer 0 Explorer 0 Win Type - Total 139 Types 84/7/33/6/3/2/4 Lore% 99 Gallery% 96 Achievement% 83 Wizard Run 0 Options --------- ASCII 1 Keyboard 0 Movement Vi Keybinds 0 Fullscreen 0 Font 16/Smallcaps Map View 86x75 Tactical HUD 1 Map Filters NONE Filters NONE Steam 1 RUN: b86942b6-4db8-41c5-b8c9-5bb10a657312